bitfinex/quotes_ETHUSD_20250425
["timestamp","ask_amount","ask_price","bid_price","bid_amount"]
[1745541603445,5.63880549,1773.5,1773.3,0.52390398]
[1745541603625,5.63888575,1773.4,1773.3,0.52390398]
[1745541603829,5.63888575,1773.4,1773.2,1.2704]
[1745541604045,5.6389013,1773.4,1773.2,1.2704]
[1745541604339,5.63877278,1773.5,1773.3,0.52361353]
[1745541604542,5.63877278,1773.5,1773.2,1.2704]
[1745541604543,5.63877278,1773.5,1773.4,0.52361353]
[1745541606450,5.63055543,1773.5,1773.4,0.52361353]
[1745541615256,5.62202988,1773.5,1773.4,0.52361353]
[1745541615552,11.31988727,1773.5,1773.4,0.52361353]
[1745541616416,11.31988727,1773.5,1773.2,0.5]
[1745541616417,5.63920374,1773.3,1773.2,0.5]
[1745541617539,5.43920374,1773.3,1773.2,1.02383878]
[1745541617837,5.639007,1773.4,1773.2,1.02383878]
[1745541618040,5.639007,1773.4,1773.3,0.52383878]
[1745541618951,5.63864789,1773.5,1773.3,0.52383878]
[1745541618952,5.63877444,1773.5,1773.3,0.52383878]
[1745541619348,5.63888575,1773.4,1773.3,0.52383878]
[1745541620159,2.01748502,1773.9,1773.3,0.52383878]
[1745541620335,5.63789953,1773.8,1773.4,6.45132251]
[1745541620736,5.63789953,1773.8,1773.5,0.52383878]
[1745541621061,5.63794599,1773.7,1773.5,0.52383878]
[1745541621262,5.63794599,1773.7,1773.6,0.52383878]
[1745541621864,11.27571224,1773.8,1773.6,0.52383878]
[1745541622039,5.63781076,1773.8,1773.6,0.52383878]
[1745541622361,5.63763801,1773.8,1773.6,0.52383878]
[1745541622663,5.63761416,1773.8,1773.7,1.27913878]
[1745541623743,5.63761416,1773.8,1773.7,0.52383878]
[1745541623945,5.6374527,1773.9,1773.7,0.52383878]
[1745541624583,5.63761416,1773.8,1773.5,1.46453646]
[1745541625396,5.63761416,1773.8,1773.6,0.52375131]
[1745541625782,5.63761416,1773.8,1773.7,0.52375131]
[1745541626184,5.63749316,1773.9,1773.7,0.52375131]
[1745541626381,5.63749316,1773.9,1773.7,1.35035131]
[1745541626752,5.63749316,1773.9,1773.8,0.52375131]
[1745541627053,9.34231754,1774.2,1773.8,0.52375131]
[1745541627054,5.63704579,1774.0,1773.8,0.52375131]
[1745541627675,5.63678934,1774.1,1773.9,0.52375131]
[1745541627918,9.44177191,1774.2,1773.9,1.27575131]
[1745541627919,5.63638351,1774.2,1773.9,1.27575131]
[1745541628055,5.63667064,1774.1,1773.9,1.96707088]
[1745541628249,5.63667064,1774.1,1774.0,0.52375131]
[1745541628475,5.63648574,1774.2,1774.0,0.52375131]
[1745541628788,5.63680742,1774.1,1773.9,0.752]
[1745541629147,5.63697857,1774.0,1773.9,0.752]
[1745541629583,5.63697857,1774.0,1773.9,1.27478155]
[1745541630592,5.63697857,1774.0,1773.9,0.52278155]
[1745541631291,5.63674296,1774.1,1773.9,0.52278155]
[1745541631801,5.63674296,1774.1,1774.0,0.32883701]
[1745541632001,5.63674296,1774.1,1774.0,0.85161856]
[1745541633405,5.63674296,1774.1,1774.0,0.32883701]
[1745541633602,11.27371488,1774.1,1773.7,0.815]
[1745541633806,5.63688909,1774.1,1774.0,0.32077146]
[1745541634103,0.7818,1774.9,1774.0,1.28424236]
[1745541634306,5.63543148,1774.5,1774.1,6.39696084]
[1745541634485,5.63543148,1774.5,1774.2,0.63969608]
[1745541634671,5.63543148,1774.5,1774.3,0.52212482]
[1745541634877,5.63543148,1774.5,1774.3,0.84170455]
[1745541635386,5.63543148,1774.5,1774.3,0.31957973]
[1745541635711,5.63525813,1774.6,1774.4,0.52114521]
[1745541636007,5.63470701,1774.8,1774.5,0.31331033]
[1745541636221,0.8055,1775.2,1774.5,0.83445554]
[1745541636405,5.63442483,1774.9,1774.6,0.52114521]
[1745541636705,5.63451282,1774.8,1774.6,0.83233207]
[1745541636893,5.63451282,1774.8,1774.6,0.31118686]
[1745541637212,5.63451282,1774.8,1774.7,0.31085063]
[1745541637413,5.63451282,1774.8,1774.4,6.43837042]
[1745541637713,5.63431479,1774.9,1774.7,0.31085063]
[1745541637934,5.63431479,1774.9,1774.7,0.7966]
[1745541638210,5.63431479,1774.9,1774.8,0.31051443]
[1745541639825,5.63431479,1774.9,1774.7,0.7966]
[1745541640027,5.63431479,1774.9,1774.8,0.31064156]
[1745541643920,5.63445559,1774.8,1774.6,0.819]
[1745541646022,5.63431117,1774.9,1774.6,0.819]
[1745541647410,11.26870348,1774.9,1774.6,0.819]
[1745541647611,5.63431117,1774.9,1774.6,0.819]
[1745541648128,11.2686922,1774.9,1774.6,0.819]
[1745541648336,11.26870021,1774.9,1774.6,0.819]
[1745541648700,5.63431117,1774.9,1774.6,0.819]
[1745541649499,5.63444821,1774.8,1774.6,0.819]
[1745541650331,5.63429061,1774.9,1774.6,0.819]
[1745541650531,5.6346651,1774.8,1774.6,0.819]
[1745541650901,5.63475516,1774.7,1774.6,0.819]
[1745541651137,5.63475516,1774.7,1774.6,1.12858475]
[1745541652011,5.63475516,1774.7,1774.6,0.30958475]
[1745541652214,1.55991754,1774.7,1774.2,1.41719608]
[1745541652409,5.63567083,1774.5,1774.3,0.3105937]
[1745541652938,5.63564632,1774.5,1774.3,0.3105937]
[1745541654550,5.63531818,1774.6,1774.3,0.3105937]
[1745541654848,11.27065394,1774.6,1774.4,0.52111307]
[1745541655051,5.63531818,1774.6,1774.5,0.30992103]
[1745541655760,5.63531818,1774.6,1774.2,0.7775]
[1745541655922,5.63531818,1774.6,1774.5,0.30992103]
[1745541656553,11.27069195,1774.6,1774.2,0.7775]
[1745541656753,5.63531818,1774.6,1774.5,0.30992103]
[1745541656956,5.63531818,1774.6,1774.2,0.7775]
[1745541656957,11.27069195,1774.6,1774.2,0.7775]
[1745541657116,5.63531818,1774.6,1774.5,0.30992103]
[1745541657314,5.63531818,1774.6,1774.5,0.52175085]
[1745541657549,5.63531818,1774.6,1774.5,0.83167188]
[1745541657844,5.63531818,1774.6,1774.5,0.30992103]
[1745541658043,5.63640427,1774.2,1774.0,5.5643]
[1745541658233,5.63666084,1774.1,1774.0,5.5643]
[1745541658427,5.63666084,1774.1,1774.0,4.771]
[1745541658629,5.63666084,1774.1,1774.0,5.29319269]
[1745541660015,5.63666084,1774.1,1774.0,0.52219269]
[1745541662321,6.41686084,1774.1,1774.0,0.52219269]
[1745541663451,7.62218735,1774.1,1774.0,0.52219269]
[1745541663752,11.38430489,1774.1,1774.0,0.52219269]
[1745541664055,5.63761416,1773.8,1773.7,4.771]
[1745541664615,5.63761416,1773.8,1773.7,5.29355351]
[1745541664814,5.63741262,1773.9,1773.7,5.29355351]
[1745541664815,5.63749953,1773.9,1773.7,5.29355351]
[1745541665055,5.63749953,1773.9,1773.8,0.52935535]
[1745541665229,5.63749953,1773.9,1773.7,5.29355351]
[1745541665632,5.63761416,1773.8,1773.7,4.771]
[1745541666230,5.63761416,1773.8,1773.7,5.04193248]
[1745541666432,5.63749953,1773.9,1773.7,0.27093248]
[1745541666648,5.63749953,1773.9,1773.8,0.52197757]
[1745541666958,5.63749953,1773.9,1773.8,0.79257338]
[1745541667957,5.63701121,1774.0,1773.8,0.79257338]
[1745541668253,5.63701121,1774.0,1773.9,0.52197757]
[1745541668458,5.63701121,1774.0,1773.9,0.79223674]
[1745541668660,0.7802,1774.3,1774.0,0.7933]
[1745541668661,5.63627169,1774.3,1774.0,0.7933]
[1745541668962,5.63645723,1774.2,1774.1,0.26958601]
[1745541670378,7.54393012,1774.2,1774.1,0.26958601]
[1745541670692,5.63729635,1773.9,1773.8,5.5643]
[1745541670887,5.63729635,1773.9,1773.8,5.83489581]
[1745541671093,5.63729635,1773.9,1773.8,6.35667187]
[1745541671494,5.63716817,1774.0,1773.8,6.35667187]
[1745541672101,5.63647583,1774.2,1773.9,0.52177606]
[1745541672258,0.7879,1774.4,1774.0,0.26992257]
[1745541672592,5.63636446,1774.2,1774.0,0.26992257]
[1745541672993,5.63636446,1774.2,1774.1,0.26958601]
[1745541673196,5.63636446,1774.2,1773.8,11.83737922]
[1745541673398,5.63636446,1774.2,1773.9,1.45399709]
[1745541673728,5.63636446,1774.2,1774.0,0.52191615]
[1745541674023,5.63636446,1774.2,1774.1,0.26958601]
[1745541674531,5.63636446,1774.2,1774.1,0.52201035]
[1745541674829,5.63636446,1774.2,1774.1,0.79159636]
[1745541678910,5.63636446,1774.2,1774.1,0.26958601]
[1745541679112,11.27298003,1774.2,1773.8,5.5643]
[1745541679316,11.27298003,1774.2,1773.9,0.82650825]
[1745541679605,5.63666349,1774.1,1773.9,0.82650825]
[1745541679813,5.63666349,1774.1,1774.0,0.52270072]
[1745541680110,5.63666349,1774.1,1774.0,0.79244238]
[1745541681049,5.63666084,1774.1,1774.0,0.79244238]
[1745541683721,5.63512543,1774.6,1774.2,5.636203]
[1745541683917,5.63562613,1774.5,1774.3,0.79143281]
[1745541684122,6.19918874,1774.5,1774.3,0.79143281]
[1745541684448,5.63562613,1774.5,1774.4,0.52270072]
[1745541684651,5.63562613,1774.5,1774.4,0.79109636]
[1745541686760,5.63523961,1774.6,1774.4,0.79109636]
[1745541686926,6.4130069,1774.8,1774.4,0.79109636]
[1745541687252,5.6346069,1774.8,1774.4,7.14852211]
[1745541687553,5.6346069,1774.8,1774.5,0.52270072]
[1745541687753,5.63430109,1774.9,1774.6,0.7901]
[1745541687954,5.63430109,1774.9,1774.6,1.05615659]
[1745541688203,5.63430109,1774.9,1774.7,0.52270072]
[1745541688702,5.63430109,1774.9,1774.6,1.05615659]
[1745541688703,5.63430109,1774.9,1774.8,0.78808474]
[1745541689511,5.63412023,1774.9,1774.8,0.78808474]
[1745541689699,5.63362023,1775.1,1774.8,0.78808474]
[1745541690068,5.63411895,1775.0,1774.8,0.26538402]
[1745541690270,5.63412023,1774.9,1774.6,0.7901]
[1745541690513,5.63412023,1774.9,1774.7,0.26425811]
[1745541690811,6.40442023,1774.9,1774.7,0.26425811]
[1745541691103,6.40442023,1774.9,1774.8,0.52210408]
[1745541691278,6.40442023,1774.9,1774.8,0.78602601]
[1745541692523,6.40442023,1774.9,1774.8,0.26392193]
[1745541692690,5.63460695,1774.8,1774.4,1.51472076]
[1745541692889,5.63460695,1774.8,1774.5,0.26235293]
[1745541693091,5.63460695,1774.8,1774.5,1.00362576]
[1745541693290,5.63460695,1774.8,1774.6,0.52191747]
[1745541693489,5.63460695,1774.8,1774.7,0.26168045]
[1745541693922,5.63460695,1774.8,1774.7,0.04725339]
[1745541694088,5.63460695,1774.8,1774.7,0.30893384]
[1745541694632,6.83850967,1774.8,1774.7,0.30893384]
[1745541695039,5.63460695,1774.8,1774.7,0.30893384]
[1745541706248,5.63460695,1774.8,1774.7,0.83113327]
[1745541708064,5.63460695,1774.8,1774.7,0.30893384]
[1745541710756,5.63460695,1774.8,1774.7,0.83164444]
[1745541712960,5.63460695,1774.8,1774.7,0.30893384]
[1745541713936,5.95087369,1774.8,1774.7,0.30893384]
[1745541714136,5.95087369,1774.8,1774.7,0.83247363]
[1745541714747,5.63460695,1774.8,1774.7,0.83247363]
[1745541715667,5.63460695,1774.8,1774.7,1.59227363]
[1745541716771,7.44194714,1775.2,1774.7,1.59227363]
[1745541716937,5.63397222,1775.0,1774.7,1.59227363]
[1745541717271,0.31635618,1775.1,1774.9,0.8158]
[1745541717473,0.31635618,1775.1,1775.0,0.25878288]
[1745541717841,0.31635618,1775.1,1775.0,1.33933979]
[1745541718043,5.63318269,1775.2,1775.0,1.59799564]
[1745541718358,5.63336808,1775.2,1775.0,1.07445585]
[1745541718559,5.63299024,1775.3,1775.0,1.07445585]
[1745541719275,5.63258008,1775.4,1775.1,0.52289765]
[1745541719582,5.63231975,1775.5,1775.2,1.31109765]
[1745541719743,5.63231975,1775.5,1775.3,0.52289765]
[1745541719943,5.63231975,1775.5,1775.4,0.25246526]
[1745541720782,6.42411975,1775.5,1775.4,0.25246526]
[1745541721081,6.42411975,1775.5,1775.0,5.5203]
[1745541721082,5.63296578,1775.3,1775.0,5.5203]
[1745541721248,5.63316809,1775.2,1775.1,0.55203]
[1745541721451,5.63348543,1775.1,1775.0,5.5203]
[1745541721982,5.63348543,1775.1,1775.0,5.29151389]
[1745541722355,5.63348543,1775.1,1775.0,0.52251389]
[1745541725690,5.63414605,1774.9,1774.7,0.86695339]
[1745541725893,5.63414605,1774.9,1774.8,0.25884506]
[1745541726202,5.63414605,1774.9,1774.8,0.78098789]
[1745541726507,5.63333596,1775.2,1774.8,0.78098789]
[1745541726655,5.6337156,1775.1,1774.9,0.52214283]
[1745541727004,5.63372263,1775.1,1775.0,0.2581728]
[1745541727201,5.63372263,1775.1,1775.0,0.78031563]
[1745541728298,5.63333655,1775.2,1775.0,1.55521563]
[1745541728592,5.63348543,1775.1,1775.0,1.0330728]
[1745541728967,5.63348543,1775.1,1775.0,1.55503563]
[1745541730457,5.63348543,1775.1,1775.0,0.78013563]
[1745541730657,6.76015354,1775.1,1775.0,0.78013563]
[1745541730896,6.76015354,1775.1,1775.0,0.52196283]
[1745541731200,7.51645354,1775.1,1775.0,0.25700734]
[1745541731561,5.63412023,1774.9,1774.8,0.52213186]
[1745541733408,6.45142023,1774.9,1774.8,0.52213186]
[1745541733609,5.63443768,1774.8,1774.7,0.04725339]
[1745541736890,5.63443768,1774.8,1774.7,0.56993662]
[1745541737422,5.63443768,1774.8,1774.7,0.04725339]
[1745541738313,5.6343188,1774.9,1774.7,0.81915339]
[1745541738817,5.63365324,1775.1,1774.7,0.81915339]
[1745541739114,11.26741347,1775.1,1774.8,0.52245386]
[1745541739291,5.63382687,1775.0,1774.9,0.52245386]
[1745541740992,5.63382687,1775.0,1774.9,0.73867227]
[1745541745286,5.63367421,1775.1,1774.9,0.73867227]
[1745541745487,5.63380281,1775.0,1774.9,0.21621841]
[1745541745788,5.63380281,1775.0,1774.7,0.81915339]
[1745541746102,5.63380281,1775.0,1774.9,0.52261934]
[1745541746641,5.63380281,1775.0,1774.9,0.73883775]
[1745541750227,5.63348543,1775.1,1774.9,0.73883775]
[1745541750423,5.63348543,1775.1,1775.0,0.52261934]
[1745541750836,5.63348543,1775.1,1775.0,0.7368339]
[1745541753936,6.76016266,1775.1,1775.0,0.52261934]
[1745541754125,6.76016266,1775.1,1775.0,0.73721507]
[1745541754326,5.63348543,1775.1,1775.0,0.73721507]
[1745541755975,11.26672868,1775.2,1775.0,0.73721507]
[1745541756178,6.40917897,1775.5,1775.0,7.18905969]
[1745541756381,5.63317927,1775.2,1775.1,1.24152531]
[1745541756541,5.63317927,1775.2,1775.1,0.73687899]
[1745541757042,5.63299222,1775.3,1775.1,0.73687899]
[1745541757360,5.63299222,1775.3,1775.2,0.52261934]
[1745541757547,5.63299222,1775.3,1775.2,0.73654294]
[1745541760187,6.75956198,1775.3,1775.2,0.73654294]
[1745541760483,5.63299222,1775.3,1775.2,0.73654294]
[1745541762142,5.63272266,1775.4,1775.2,0.73654294]
[1745541762350,5.63272266,1775.4,1775.3,0.52261934]
[1745541762548,5.63272266,1775.4,1775.3,0.73485492]
[1745541763707,6.40914593,1775.5,1775.3,0.73485492]
[1745541763708,6.40915947,1775.5,1775.3,0.73485492]
[1745541763895,12.04167637,1775.5,1775.3,0.21223558]
[1745541764233,6.40915947,1775.5,1775.0,6.45173946]
[1745541764531,5.63042577,1776.1,1774.9,5.6339765]
[1745541764532,5.63096169,1775.9,1775.5,0.8255]
[1745541764902,5.63127188,1775.8,1775.6,0.73299546]
[1745541765297,5.63158191,1775.7,1775.6,0.21064195]
[1745541765495,7.91596581,1775.7,1775.6,0.21064195]
[1745541765717,5.63208731,1775.6,1775.3,0.52219235]
[1745541766118,6.70952352,1775.7,1775.3,0.52219235]
[1745541766322,12.02565273,1775.7,1775.4,0.52219235]
[1745541766530,5.631685,1775.7,1775.4,0.52219235]
[1745541766709,5.631685,1775.7,1775.5,0.52219235]
[1745541767016,5.63189907,1775.6,1775.5,0.52219235]
[1745541767222,5.63189907,1775.6,1775.2,6.45847475]
[1745541767422,5.63172088,1775.7,1775.2,6.45842978]
[1745541767646,11.26358137,1775.7,1775.2,6.45842978]
[1745541767947,5.63194815,1775.6,1775.2,8.21892689]
[1745541768150,5.63194815,1775.6,1775.3,0.52225075]
[1745541768344,5.6317845,1775.7,1775.3,0.52225075]
[1745541768649,6.43410712,1775.8,1775.4,0.7698]
[1745541768849,5.63158501,1775.7,1775.4,1.29205075]
[1745541769056,5.63158501,1775.7,1775.4,2.03177717]
[1745541769416,6.43405123,1775.8,1775.5,0.52225075]
[1745541769837,3.4015063,1776.0,1775.5,0.52225075]
[1745541769838,0.4015063,1776.0,1775.6,6.44124532]
[1745541770021,6.03232044,1776.0,1775.6,0.8095]
[1745541770230,0.4015063,1776.0,1775.6,0.8095]
[1745541770436,6.0323461,1776.0,1775.6,1.4536715]
[1745541770778,5.63095067,1775.9,1775.7,0.52181985]
[1745541771105,5.63095067,1775.9,1775.8,0.20866375]
[1745541771647,6.032326,1776.0,1775.8,0.20866375]
[1745541772012,5.63130928,1775.8,1775.6,0.8095]
[1745541772213,5.63130928,1775.8,1775.7,0.20899957]
[1745541772426,5.63126478,1775.8,1775.6,0.8095]
[1745541772755,5.63126478,1775.8,1775.7,0.20899957]
[1745541773115,5.63126478,1775.8,1775.6,0.8095]
[1745541773316,5.63126478,1775.8,1775.7,0.20899957]
[1745541773856,7.21621023,1775.9,1775.6,0.8095]
[1745541774038,12.84742968,1775.9,1775.7,0.20899957]
[1745541774212,12.84742968,1775.9,1775.6,0.8095]
[1745541774213,5.63126478,1775.8,1775.6,0.8095]
[1745541774414,5.63126478,1775.8,1775.7,0.20899957]
[1745541774623,12.84745038,1775.9,1775.6,0.8095]
[1745541774824,7.21621023,1775.9,1775.7,0.20899957]
[1745541775124,7.21621023,1775.9,1775.5,0.7656]
[1745541775324,7.21621023,1775.9,1775.8,0.20672667]
[1745541775543,5.63172594,1775.7,1775.5,0.7656]
[1745541775762,5.63145327,1775.8,1775.5,0.7656]
[1745541776059,1.58501754,1775.9,1775.5,0.7656]
[1745541776441,5.63170067,1775.7,1775.4,0.87705339]
[1745541777551,5.63170067,1775.7,1775.5,0.52183259]
[1745541778288,5.63170067,1775.7,1775.4,0.87705339]
[1745541779156,5.63171008,1775.7,1775.5,0.52186211]
[1745541779659,5.63171008,1775.7,1775.4,0.87705339]
[1745541780347,5.63171008,1775.7,1775.5,0.5]
[1745541780953,5.63143013,1775.8,1775.5,0.5]
[1745541781753,5.63143013,1775.8,1775.6,0.52189864]
[1745541782342,5.63143013,1775.8,1775.4,6.50954941]
[1745541782542,5.63143013,1775.8,1775.4,7.16050435]
[1745541782876,5.63143013,1775.8,1775.5,0.52196067]
[1745541783046,5.63143013,1775.8,1775.6,0.52196067]
[1745541783575,5.63143013,1775.8,1775.4,1.52800833]
[1745541783942,5.63143013,1775.8,1775.5,0.52204894]
[1745541784575,5.63143013,1775.8,1775.6,0.52204894]
[1745541784882,5.63143013,1775.8,1775.4,1.52800833]
[1745541785173,11.26300467,1775.8,1775.4,1.52800833]
[1745541785475,11.26300467,1775.8,1775.5,0.52231748]
[1745541785662,11.26300467,1775.8,1775.6,0.52231748]
[1745541786069,5.63143013,1775.8,1775.7,0.20706249]
[1745541786455,11.26297814,1775.8,1775.4,0.87705339]
[1745541786667,5.63143013,1775.8,1775.7,0.20706249]
[1745541786845,11.26296573,1775.8,1775.4,0.87705339]
[1745541787040,5.63143013,1775.8,1775.7,0.20706249]
[1745541787276,11.26296573,1775.8,1775.4,0.87705339]
[1745541787481,5.63160884,1775.7,1775.4,0.87705339]
[1745541787777,5.63160884,1775.7,1775.5,0.52241523]
[1745541788291,5.63160884,1775.7,1775.6,0.52241523]
[1745541792856,5.94777061,1775.7,1775.6,0.52241523]
[1745541793992,7.48098815,1775.7,1775.6,0.52241523]
[1745541794355,10.48098815,1775.7,1775.6,0.52241523]
[1745541794563,12.09222998,1775.7,1775.6,0.52241523]
[1745541794883,5.63221627,1775.5,1775.4,0.04725339]
[1745541795294,5.63221627,1775.5,1775.4,0.76162711]
[1745541795593,5.94862169,1775.5,1775.4,0.57089883]
[1745541795780,5.94862169,1775.5,1775.4,0.76162711]
[1745541795958,7.10668574,1775.5,1775.4,0.76162711]
[1745541799287,6.79028032,1775.5,1775.4,0.76162711]
[1745541801460,7.10639938,1775.5,1775.4,0.76162711]
[1745541803763,6.79028032,1775.5,1775.4,0.76162711]
[1745541805603,7.10637605,1775.5,1775.4,0.76162711]
[1745541807501,6.79028032,1775.5,1775.4,0.76162711]
[1745541807868,6.79028032,1775.5,1775.4,0.23798167]
[1745541809012,6.79028032,1775.5,1775.4,0.761152]
[1745541811011,7.10635374,1775.5,1775.4,0.761152]
[1745541811914,6.79028032,1775.5,1775.4,0.761152]
[1745541813515,6.79028032,1775.5,1775.4,0.76120561]
[1745541814513,7.10642021,1775.5,1775.4,0.76120561]
[1745541815302,9.45129749,1775.5,1775.4,0.76120561]
[1745541815502,12.45129749,1775.5,1775.4,0.23798167]
[1745541815701,12.45129749,1775.5,1775.4,0.04725339]
[1745541818307,17.21329749,1775.5,1775.4,0.04725339]
[1745541818710,17.63014714,1775.5,1775.4,0.04725339]
[1745541820351,12.86814714,1775.5,1775.4,0.04725339]
[1745541836330,14.39092442,1775.5,1775.4,1e-08]
[1745541837463,12.10728661,1775.5,1775.4,1e-08]
[1745541846177,8.28518661,1775.5,1775.4,1e-08]
[1745541846550,16.04818661,1775.5,1775.4,1e-08]
[1745541852050,11.28518661,1775.5,1775.4,1e-08]
[1745541852250,16.04718661,1775.5,1775.4,1e-08]
[1745541855870,14.86742021,1775.5,1775.4,1e-08]
[1745541856070,13.70935616,1775.5,1775.4,1e-08]
[1745541859700,8.63253351,1775.4,1775.3,0.7522]
[1745541860203,5.63253351,1775.4,1775.3,0.7522]
[1745541860577,5.63253351,1775.4,1775.3,0.88381223]
[1745541861066,5.63253351,1775.4,1775.3,1.40700913]
[1745541862712,5.63253351,1775.4,1775.3,1.2753969]
[1745541863010,5.63253351,1775.4,1775.3,0.7522]
[1745541863303,5.63370604,1775.1,1774.8,0.8046]
[1745541863465,5.6337175,1775.1,1774.9,0.13219491]
[1745541863665,5.6337175,1775.1,1775.0,0.7888]
[1745541864008,5.6337175,1775.1,1775.0,1.44366803]
[1745541864494,5.6337175,1775.1,1775.0,0.92065879]
[1745541865890,7.15676275,1775.1,1775.0,0.92065879]
[1745541866291,5.6337175,1775.1,1775.0,0.92065879]
[1745541868634,5.6337175,1775.1,1775.0,1.4440264]
[1745541871626,5.6337175,1775.1,1775.0,0.92065879]
[1745541873214,5.94982043,1775.1,1775.0,1.44425853]
[1745541876430,7.86990403,1775.1,1775.0,0.65545853]
[1745541876632,11.69540403,1775.1,1775.0,0.65545853]
[1745541877017,8.63380281,1775.0,1774.9,0.04742335]
[1745541877335,8.94990574,1775.0,1774.9,0.04742335]
[1745541877529,11.15892642,1775.0,1774.9,0.04742335]
[1745541878326,11.57142979,1775.0,1774.9,0.04742335]
[1745541878527,5.63539025,1774.5,1774.4,0.8237]
[1745541879009,5.63539025,1774.5,1774.4,0.93690162]
[1745541879209,5.63539025,1774.5,1774.4,0.8237]
[1745541882225,4.79524281,1774.5,1774.4,0.8237]
[1745541883040,5.63494192,1774.7,1774.4,0.8237]
[1745541883206,9.04635616,1775.0,1774.4,0.8237]
[1745541883407,11.2699835,1774.7,1774.4,0.8237]
[1745541883608,5.63496218,1774.7,1774.4,0.8237]
[1745541884906,11.26999147,1774.7,1774.4,0.8237]
[1745541885106,5.63496218,1774.7,1774.4,0.8237]
[1745541887546,11.26997361,1774.7,1774.4,0.8237]
[1745541887752,5.63510004,1774.6,1774.4,0.8237]
[1745541888756,5.63539025,1774.5,1774.4,0.8237]
[1745541894769,5.63510004,1774.6,1774.4,0.8237]
[1745541894972,5.63539025,1774.5,1774.4,0.8237]
[1745541896692,5.63634314,1774.2,1774.1,1.0]
[1745541896975,8.69274073,1774.2,1774.1,1.0]
[1745541897567,9.11874654,1774.2,1774.1,1.0]
[1745541897755,10.70201348,1774.2,1774.1,1.0]
[1745541897952,11.01800584,1774.2,1774.1,1.0]
[1745541899182,9.92281348,1774.2,1774.1,1.0]
[1745541900556,8.33954654,1774.2,1774.1,1.0]
[1745541902087,7.91354073,1774.2,1774.1,1.0]
[1745541908399,8.2288688,1774.2,1774.1,1.0]
[1745541909095,7.91354073,1774.2,1774.1,1.0]
[1745541915011,4.91354073,1774.2,1774.1,1.0]
[1745541919315,5.63615986,1774.3,1774.1,1.0]
[1745541919508,5.63634314,1774.2,1774.1,1.0]
[1745541921607,9.84039344,1774.2,1774.1,1.0]
[1745541922625,10.60216406,1774.2,1774.1,1.0]
[1745541923026,10.9179964,1774.2,1774.1,1.0]
[1745541923337,10.92422578,1774.2,1774.1,1e-08]
[1745541924222,10.15622578,1774.2,1774.1,1e-08]
[1745541924402,8.95217548,1774.2,1774.1,1e-08]
[1745541924590,5.95217548,1774.2,1774.1,1e-08]
[1745541924928,5.63634314,1774.2,1774.1,1e-08]
[1745541925895,5.63634314,1774.2,1774.1,0.80480001]
[1745541929037,5.63615986,1774.3,1774.1,0.80480001]
[1745541929589,11.27247586,1774.3,1774.1,0.80480001]
[1745541929792,5.63634314,1774.2,1774.1,0.80480001]
[1745541931422,5.63615986,1774.3,1774.1,0.80480001]
[1745541931595,5.63615986,1774.3,1774.2,0.8256]
[1745541931801,5.63575731,1774.4,1774.2,0.8256]
[1745541931802,5.63575731,1774.4,1774.2,1.06169955]
[1745541932669,5.63575731,1774.4,1774.3,0.7635]
[1745541932870,5.63570784,1774.4,1774.3,0.7635]
[1745541933073,5.63570784,1774.4,1774.3,1.00229917]
[1745541936942,10.56003346,1774.4,1774.3,0.23879917]
[1745541937138,5.63634314,1774.2,1774.1,1e-08]
[1745541937377,5.63634314,1774.2,1774.1,0.23948761]
[1745541937683,5.63634314,1774.2,1774.1,1e-08]
[1745541937833,6.7635945,1774.2,1774.1,0.23955263]
[1745541938044,6.7635945,1774.2,1774.1,1e-08]
[1745541938545,6.7635945,1774.2,1774.1,0.24076377]
[1745541938730,10.5433945,1774.2,1774.1,0.24076377]
[1745541938934,11.30516512,1774.2,1774.1,1e-08]
[1745541939357,11.62120835,1774.2,1774.1,1e-08]
[1745541941983,11.62810835,1774.2,1774.1,1e-08]
[1745541942288,5.63920374,1773.3,1773.2,1.3254]
[1745541942490,5.63920374,1773.3,1773.2,0.5]
[1745541942667,5.63920374,1773.3,1773.2,0.7077953]
[1745541942990,9.42500374,1773.3,1773.2,0.5]
[1745541943285,10.62900324,1773.3,1773.2,0.5]
[1745541943484,10.94504647,1773.3,1773.2,0.5]
[1745541946857,10.62900324,1773.3,1773.2,0.5]
[1745541947459,9.84320324,1773.3,1773.2,0.5]
[1745541947772,9.84320324,1773.3,1772.6,6.45749434]
[1745541947773,5.64111242,1772.7,1772.6,0.05448028]
[1745541948995,5.641016,1772.8,1772.6,0.05448028]
[1745541949406,5.64111242,1772.7,1772.6,0.05448028]
[1745541949572,5.64092448,1772.8,1772.6,0.05448028]
[1745541950055,11.28196482,1772.8,1772.6,0.05448028]
[1745541950255,5.64111242,1772.7,1772.6,0.05448028]
[1745541950979,5.64111242,1772.7,1772.6,0.26977218]
[1745541951148,5.64111242,1772.7,1772.6,0.05448028]
[1745541951356,5.64111242,1772.7,1772.6,0.26977218]
[1745541960398,6.76932369,1772.7,1772.6,0.26977218]
[1745541961318,5.64111242,1772.7,1772.6,0.26977218]
[1745541962510,7.23008304,1772.7,1772.6,0.26977218]
[1745541963062,7.66247757,1772.7,1772.6,0.26977218]
[1745541965896,6.90070695,1772.7,1772.6,0.26977218]
[1745541966400,10.66247757,1772.7,1772.6,0.26977218]
[1745541966578,12.29282535,1772.7,1772.6,0.26977218]
[1745541966776,12.29282535,1772.7,1772.6,1e-08]
[1745541967382,12.60739863,1772.7,1772.6,1e-08]
[1745541967568,12.60259863,1772.7,1772.6,1e-08]
[1745541967769,11.84082801,1772.7,1772.6,1e-08]
[1745541969909,12.39082801,1772.7,1772.6,1e-08]
[1745541970613,5.64397787,1771.8,1771.7,0.01080305]
[1745541970915,8.64397787,1771.8,1771.7,0.01080305]
[1745541971804,9.44907787,1771.8,1771.7,0.01080305]
[1745541972710,9.76440279,1771.8,1771.7,0.01080305]
[1745541973212,5.64525234,1771.4,1771.3,0.5]
[1745541973641,6.77428472,1771.4,1771.3,0.5]
[1745541974113,9.77428472,1771.4,1771.3,0.5]
[1745541976517,11.28715534,1771.4,1770.6,5.5218]
[1745541976723,5.64727197,1770.8,1770.6,5.5218]
[1745541976926,5.64727197,1770.8,1770.7,0.2297084]
[1745541977307,5.64748404,1770.7,1770.6,0.7578]
[1745541978311,5.64727197,1770.8,1770.6,0.7578]
[1745541979024,5.64701771,1770.9,1770.6,0.7578]
[1745541979336,5.64748404,1770.7,1770.6,0.7578]
[1745541980414,5.64727747,1770.8,1770.6,0.7578]
[1745541980620,5.64701807,1770.9,1770.6,0.7578]
[1745541980806,5.64726403,1770.8,1770.6,0.7578]
[1745541981155,5.64726403,1770.8,1770.7,0.23826691]
[1745541981507,5.64726403,1770.8,1770.6,0.7578]
[1745541981708,5.64726403,1770.8,1770.7,0.23826691]
[1745541981908,5.64726403,1770.8,1770.6,0.7578]
[1745541982110,5.64726403,1770.8,1770.7,0.23826691]
[1745541982514,5.64726403,1770.8,1770.6,0.7578]